FIN.Transaction Date,MCH.Merchant Name,FIN.Accounting Code 01 Description,FIN.Accounting Code 03 Description,FIN.Net Transaction Amount,FIN.Transaction Amount,FIN.TAX.Net Amount,FIN.Tax Amount,FIN.TAX.Tax Rate,FIN.Tax Rate(%)
30/12/2018,Amazon.co.uk M25MA49A4,Ict,Hardware Maintenance,37.49,44.99,0,7.5,0,20
31/12/2018,ABEBOOKS.UK FR7FF3,Syrian resettlement scheme,Recharge Third Party,32.97,39.56,0,6.59,0,20
31/12/2018,BOOKDEPOSITORY.COM,Syrian resettlement scheme,Recharge Third Party,341.67,410,0,68.33,0,20
31/12/2018,ABEBOOKS.UK FR7FF5,Syrian resettlement scheme,Recharge Third Party,22.48,26.98,0,4.5,0,20
01/01/2019,DEBENHAMS,Heritage Culture and Visitors,Catering,13.8,13.8,0,0,0,0
01/01/2019,MAILCHIMP    MONTHLY,Heritage Culture and Visitors,Advertising,59.6,59.6,0,0,0.09,0
02/01/2019,CO OP FOOD,Southwell Tr admin & ops,Vending Machine Provisions,13.2,13.2,0,0,0,0
02/01/2019,CURRYS,Housing Options,Recharge Third Party,108.32,129.99,0,21.67,0,20
03/01/2019,XLN TELECOM LTD,Southwell Tr admin & ops,Telephones,58.9,70.68,0,11.78,0,20
03/01/2019,WWW.PAXTON.CO.UK,Castle House,Premises Security,196,235.2,0,39.2,0,20
03/01/2019,Timpson LTD,Heritage Culture and Visitors,Other Equipment And Tools,22.08,26.5,0,4.42,0,20
03/01/2019,VESTA VODAFONE,Heritage Culture and Visitors,Other Equipment And Tools,8.33,10,0,1.67,0,20
03/01/2019,WM MORRISONS STORE,Heritage Culture and Visitors,Travel And Subsistence,5.6,5.6,0,0,0,0
03/01/2019,LNER WEB SALES,Financial Services,Travel And Subsistence,84.2,84.2,0,0,0,0
03/01/2019,ALDI 31 779,Syrian resettlement scheme,Professional Services,16.84,20.21,0,3.37,0,20
03/01/2019,Trainline,Legal Section,Training Expenses,66.44,66.44,0,0,0,0
03/01/2019,WWW.SHAWS.CO.UK,Legal Section,Stationery,158.98,190.78,0,31.8,0,20
03/01/2019,NEWARK & SHERWOOD LOCK,Newark Business Innovation Cen,Repairs And Maintenance,45.37,54.45,0,9.08,0,20
03/01/2019,LNER WEB SALES,Corporate Management Team,Travel And Subsistence,121.5,121.5,0,0,0,0
04/01/2019,WWW.GARDENWILDLIFEDIRE,Vicar Water Park,Materials,14.99,17.99,0,3,0,20
04/01/2019,OSBORNES NEWARK,Heritage Culture and Visitors,Advertising,3.74,4.49,0,0.75,0,20
04/01/2019,Trainline,Housing Options,Travel And Subsistence,94.54,113.45,0,18.91,0,20
07/01/2019,DVLA VEHICLE TAX,Vehicle Pool Workshop,Licences & M.O.T.'S,652.5,652.5,0,0,0,0
07/01/2019,WPY CERBERUS LLC,Building Control,Contractual Services,242.82,242.82,0,0,0,0
07/01/2019,AMZN Mktp UK MB8KB53M4,Arts Development,Parish Cncls And Vol Bodies,12.28,14.74,0,2.46,0,20
07/01/2019,AMZN Mktp UK MB9NF4JR4,Arts Development,Parish Cncls And Vol Bodies,8.24,9.89,0,1.65,0,20
07/01/2019,ASDA GROCERIES ONLINE,Castle House,Catering,45.98,45.98,0,0,0,0
07/01/2019,Amazon.co.uk MB7BP1JA4,Vicar Water Park,Materials,23.32,27.98,0,4.66,0,20
07/01/2019,JWS EUROPE LTD,Arts Development,Parish Cncls And Vol Bodies,82.9,99.48,0,16.58,0,20
07/01/2019,ENVIROMENT AGENCY,Vicar Water Park,Contractual Services,135,135,0,0,0,0
07/01/2019,WM MORRISONS STORE,Heritage Culture and Visitors,Advertising,8.33,10,0,1.67,0,20
07/01/2019,CO OP FOOD,Southwell Tr admin & ops,Vending Machine Provisions,13.2,13.2,0,0,0,0
08/01/2019,CO OP FOOD,Southwell Tr admin & ops,Vending Machine Provisions,8.8,8.8,0,0,0,0
08/01/2019,AMZN Mktp UK MB5GO1TR4,Arts Development,Parish Cncls And Vol Bodies,5.34,6.41,0,1.07,0,20
08/01/2019,RAILEASY WEB SITE,Legal Section,Training Expenses,84.71,84.71,0,0,0,0
07/01/2019,HOUSE OF BATTERIES,Vehicle Pool Workshop,Materials,16.67,20,0,3.33,0,20
09/01/2019,AMZN Mktp UK MB2LK8EJ4,Newark Business Innovation Cen,Office Equipment Purchase,46.4,55.68,0,9.28,0,20
09/01/2019,LNER WEB SALES,Corporate Management Team,Travel And Subsistence,161,161,0,0,0,0
09/01/2019,Virgin Trains,Corporate Management Team,Travel And Subsistence,144,144,0,0,0,0
10/01/2019,AMZN Mktp UK MB3KV20V4,Castle House,Repairs And Maintenance,11,13.2,0,2.2,0,20
10/01/2019,WWW.PLOT-IT.CO.UK,Corporate Property,Publications,71.75,86.1,0,14.35,0,20
10/01/2019,CO OP FOOD,Southwell Tr admin & ops,Vending Machine Provisions,13.2,13.2,0,0,0,0
10/01/2019,EYRE & ELLISTON LTD,Heritage Culture and Visitors,Other Equipment And Tools,63.6,76.32,0,12.72,0,0
10/01/2019,LNER WEB SALES,Promotion Of Tourism,Travel And Subsistence,64.5,64.5,0,0,0,0
10/01/2019,ASDA GROCERIES ONLINE,Castle House,Catering,49.82,49.82,0,0,0,0
10/01/2019,BOOKERECOMM,Newark Business Innovation Cen,Cafeteria,88.44,88.44,0,0,0,0
10/01/2019,BOOKERECOMM,Newark Business Innovation Cen,Cafeteria,154.66,154.66,0,0,0,20
09/01/2019,SCREWFIX NEWARK,Newark Business Innovation Cen,Repairs And Maintenance,21.65,25.98,0,4.33,0,20
12/01/2019,CO OP FOOD,Southwell Tr admin & ops,Vending Machine Provisions,13.2,13.2,0,0,0,0
11/01/2019,Amazon Prime MB5YE5P44,Arts Development,Parish Cncls And Vol Bodies,6.66,7.99,0,1.33,0,20
13/01/2019,ADOBE  CREATIVE CLOUD,Heritage Culture and Visitors,Advertising,59,70.8,0,11.8,0,20
11/01/2019,iZ  Newark Busines,Newark Business Innovation Cen,Advertising,7,7,0,0,0,0
11/01/2019,WWW.PMGLTD.CO.UK,Corporate Management Team,Course Fees,179,214.8,0,35.8,0,20
11/01/2019,WWW.OFCOM.ORG.UK,Car Parks & Markets Admin,Contractual Services,100,100,0,0,0,0
14/01/2019,ROYAL MAIL CHARGES,Central Postages,Postages,1.5,1.5,0,0,0,0
14/01/2019,DISCLOSURE & BARRING,Personnel Section,Disclosure & barring service,13,13,0,0,0,0
14/01/2019,ASDA GROCERIES ONLINE,Castle House,Catering,48.52,48.52,0,0,0,0
14/01/2019,B&M Retail,Castle House,Catering,13.97,13.97,0,0,0,0
14/01/2019,DISCLOSURE & BARRING,Personnel Section,Disclosure & barring service,13,13,0,0,0,0
14/01/2019,WM MORRISONS STORE,Newark Business Innovation Cen,Cafeteria,54,54,0,0,0,0
14/01/2019,WM MORRISONS STORE,Newark Business Innovation Cen,Cafeteria,40.61,48.73,0,8.12,0,20
14/01/2019,WM MORRISONS STORE,Newark Business Innovation Cen,Cafeteria,4.92,5.9,0,0.98,0,20
15/01/2019,NEWARK CASTLE TO,Promotion Of Tourism,Travel And Subsistence,72,72,0,0,0,0
15/01/2019,Amazon.co.uk MB6951HA4,Env Health Proactive,Stationery,14.12,16.95,0,2.83,0,20
15/01/2019,E.ON ENERGY SOLUTIONS,Housing Options,Recharge Third Party,26.5,27.83,0,1.33,0,5
15/01/2019,East Midlands Trains L,Legal Section,Training Expenses,3.5,3.5,0,0,0,0
15/01/2019,JRW FLOORING,Housing Options,Prevention Fund,291.67,350,0,58.33,0,20
15/01/2019,WM MORRISONS STORE,Newark Business Innovation Cen,Cafeteria,10.42,12.5,0,2.08,0,20
15/01/2019,ASDA  STORES 4201,Newark Business Innovation Cen,Office Equipment Purchase,2.5,3,0,0.5,0,20
16/01/2019,THE RANGE-NEWARK,Vehicle Pool Workshop,Clothing And Uniforms,32.46,38.95,0,6.49,0,20
16/01/2019,AMZN Mktp UK MB9MH3HQ4,Castle House,Repairs And Maintenance,16.65,19.98,0,3.33,0,20
16/01/2019,AMZN Mktp UK MB8O31H74,Neighbourhood Centres,Repairs And Maintenance,37.12,44.54,0,7.42,0,20
15/01/2019,ASDA GROCERIES ONLINE,Castle House,Catering,43.51,43.51,0,0,0,0
17/01/2019,AMZN MKTP UK MB8X15BO4,Castle House,Repairs And Maintenance,5.67,6.8,0,1.13,0,20
17/01/2019,F DONCASTER LTD,Heritage Culture and Visitors,Catering,200,200,0,0,0,0
17/01/2019,F DONCASTER LTD,Heritage Culture and Visitors,Catering,52.22,52.22,0,0,0,0
17/01/2019,F DONCASTER LTD,Heritage Culture and Visitors,Catering,200,200,0,0,0,0
17/01/2019,ASDA GROCERIES ONLINE,Castle House,Catering,40.44,40.44,0,0,0,0
17/01/2019,DISCLOSURE & BARRING,National Civil War Centre,Professional Services,13,13,0,0,0,0
18/01/2019,AMZN Mktp UK MB2AQ5QJ4,Arts Development,Parish Cncls And Vol Bodies,16.5,19.8,0,3.3,0,20
18/01/2019,NEWARK CASTLE TO,Strategic Hsg (Was Community),Travel And Subsistence,221.3,221.3,0,0,0,0
19/01/2019,AMZN Mktp UK MB0U34694,Community Nutritionist,Professional Services,19.15,22.98,0,3.83,0,20
20/01/2019,AMZN Mktp UK MB1E80DI4,Community Nutritionist,Professional Services,20.8,24.96,0,4.16,0,20
20/01/2019,LNER WEB SALES,Promotion Of Tourism,Travel And Subsistence,-53.5,-53.5,0,0,0,0
18/01/2019,SAINSBURYS SACAT 4856,Newark Business Innovation Cen,Cafeteria,3.42,4.1,0,0.68,0,20
20/01/2019,WILKO RETAIL LIMIT,Newark Business Innovation Cen,Office Equipment Purchase,1.67,2,0,0.33,0,20
18/01/2019,WWW.LOCAL.GOV.UK,Corporate Management Team,Course Fees,394.8,394.8,0,0,0,0
18/01/2019,WWW.LOCAL.GOV.UK,Members Expenses,Course Fees,394.8,394.8,0,0,0,0
21/01/2019,AMZN Mktp UK MB6C40SJ4,Arts Development,Parish Cncls And Vol Bodies,16.15,19.38,0,3.23,0,20
21/01/2019,AMZN Mktp UK MB5445SY4,Heritage Culture and Visitors,Education & Outreach,49.86,53.7,0,3.84,0,0
21/01/2019,ASDA GROCERIES ONLINE,Castle House,Catering,48.7,48.7,0,0,0,0
21/01/2019,WAITROSE 227,Castle House,Catering,6.9,6.9,0,0,0,0
21/01/2019,DISCLOSURE & BARRING,Personnel Section,Disclosure & barring service,13,13,0,0,0,0
21/01/2019,WM MORRISONS STORE,Newark Business Innovation Cen,Cafeteria,8.12,9.75,0,1.63,0,20
21/01/2019,AMZN MKTP UK MB6465S34,Newark Business Innovation Cen,Office Equipment Purchase,19,22.8,0,3.8,0,20
21/01/2019,WWW.LOCAL.GOV.UK,Corporate Management Team,Course Fees,545,654,0,109,0,20
22/01/2019,Amazon.co.uk MB8U48K94,Heritage Culture and Visitors,Promotion Of Events,3.32,3.99,0,0.67,0,20
22/01/2019,CO OP FOOD,Southwell Tr admin & ops,Vending Machine Provisions,13.2,13.2,0,0,0,0
22/01/2019,BOOTS 1106,Southwell Tr admin & ops,Repairs And Maintenance,75,90,0,15,0,20
22/01/2019,Trainline,Legal Section,Training Expenses,11.75,11.75,0,0,0,0
22/01/2019,WWW.LOCAL.GOV.UK,Members Expenses,Training Expenses,545,654,0,109,0,20
23/01/2019,ROYAL MAIL CHARGES,Central Postages,Postages,1.5,1.5,0,0,0,0
23/01/2019,ROYAL MAIL CHARGES,Central Postages,Postages,2,2,0,0,0,0
23/01/2019,ASDA GROCERIES ONLINE,Castle House,Catering,53.7,53.7,0,0,0,0
23/01/2019,Amazon.co.uk MB7TZ3714,Env Health Proactive,Materials,28.25,33.9,0,5.65,0,20
23/01/2019,DISCLOSURE & BARRING,Museums Management,Professional Services,13,13,0,0,0,0
24/01/2019,CO OP FOOD,Southwell Tr admin & ops,Vending Machine Provisions,13.2,13.2,0,0,0,0
24/01/2019,MAUDESPORT LTD,Community Nutritionist,Professional Services,75.81,90.97,0,15.16,0,20
24/01/2019,LNER WEB SALES,Financial Services,Travel And Subsistence,49.6,49.6,0,0,0,0
24/01/2019,AMZN Mktp UK MB9HJ6964,Env Health Reactive,Stationery,4.99,5.99,0,1,0,20
24/01/2019,LNER WEB SALES,National Civil War Centre,Travel And Subsistence,122.3,122.3,0,0,0,0
24/01/2019,WWW.UNFORGETTABLE.,Heritage Culture and Visitors,Education & Outreach,4.46,5.35,0,0.89,0,20
24/01/2019,WWW.UNFORGETTABLE.,Heritage Culture and Visitors,Education & Outreach,1.99,1.99,0,0,0,0
24/01/2019,AROMAPRIME,Heritage Culture and Visitors,Education & Outreach,24.97,29.96,0,4.99,0,20
25/01/2019,WWW.STAPLES.CO.UK,Corporate Property,Other Equipment And Tools,4.48,5.38,0,0.9,0,20
25/01/2019,AMZN MKTP UK MB6VL3UQ4,Env Health Reactive,Office Equipment Purchase,5.82,6.99,0,1.17,0,20
24/01/2019,AMZN MKTP UK MB8657UQ4,Env Health Reactive,Office Equipment Purchase,8.32,9.99,0,1.67,0,20
25/01/2019,WWW.BAGA.CO.UK,Southwell Tr admin & ops,Equipment badges,349.17,419,0,69.83,0,20
26/01/2019,CO OP FOOD,Southwell Tr admin & ops,Vending Machine Provisions,13.2,13.2,0,0,0,0
26/01/2019,FACEBK XW75FKEDQ2,Heritage Culture and Visitors,Advertising,67.34,67.34,0,0,0,0
25/01/2019,DISCLOSURE & BARRING,Personnel Section,Disclosure & barring service,13,13,0,0,0,0
25/01/2019,ACM TRAINING,Communications & Cust Services,Corporate Communication,198,237.6,0,39.6,0,20
28/01/2019,AUTOKOOL LIMITED,Vehicle Pool Workshop,Materials,12.46,14.95,0,2.49,0,20
28/01/2019,PENDLE EQUIPMENT,Vehicle Pool Workshop,Materials,34.5,41.4,0,6.9,0,20
28/01/2019,CARTRIDGEPEOPLE.COM,Vehicle Pool Workshop,Materials,29.17,35,0,5.83,0,20
28/01/2019,WWW.ANDREWSYKESHIRE.CO,Sherwood Forest Craft Centre,Premises Repairs & Renewals,572,686.4,0,114.4,0,20
28/01/2019,ROYAL MAIL CHARGES,Central Postages,Postages,1.5,1.5,0,0,0,0
28/01/2019,WAITROSE 227,Castle House,Catering,9.4,9.4,0,0,0,0
28/01/2019,KEY BUILDING SUPPLIES,Env Health Reactive,Professional Services,20,24,0,4,0,20
29/01/2019,MAMMOTH WORKWEAR,Vehicle Pool Workshop,Clothing And Uniforms,111.84,134.21,0,22.37,0,20
29/01/2019,PAYPAL  WANGLINGYAN,Env Health Proactive,Other Equipment And Tools,56.4,56.4,0,0,0,0
29/01/2019,ASDA GROCERIES ONLINE,Castle House,Catering,44.18,44.18,0,0,0,0
29/01/2019,iStock.com,Communications & Cust Services,Corporate Communication,258.33,310,0,51.67,0,20
30/01/2019,WWW.STAPLES.CO.UK,Corporate Property,Other Equipment And Tools,19.76,23.71,0,3.95,0,20
30/01/2019,CO OP FOOD,Southwell Tr admin & ops,Vending Machine Provisions,13.2,13.2,0,0,0,0
30/01/2019,ROYAL MAIL CHARGES,Central Postages,Postages,1.5,1.5,0,0,0,0
29/01/2019,ROYAL MAIL CHARGES,Central Postages,Postages,1.5,1.5,0,0,0,0
29/01/2019,ROYAL MAIL CHARGES,Central Postages,Postages,2,2,0,0,0,0
30/01/2019,ASDA GROCERIES ONLINE,Castle House,Catering,51.4,51.4,0,0,0,0
30/01/2019,Virgin Trains,Legal Section,Training Expenses,63.1,63.1,0,0,0,0
30/01/2019,ONE STOP 3018,Housing Options,Recharge Third Party,20,20,0,0,0,0
30/01/2019,ONE STOP 3018,Housing Options,Recharge Third Party,20,20,0,0,0,0
30/01/2019,B&M Retail,Housing Options,Recharge Third Party,58.23,69.88,0,11.65,0,20
30/01/2019,WWW.NISBETS.COM,Castle House,Catering,78.17,93.81,0,15.64,0,20
31/01/2019,WWW.MOTOR.ORG.UK,Vehicle Pool Workshop,Materials,120,144,0,24,0,20
30/01/2019,DISCLOSURE & BARRING,Personnel Section,Disclosure & barring service,13,13,0,0,0,0
31/01/2019,ROYAL MAIL CHARGES,Central Postages,Postages,1.5,1.5,0,0,0,0
31/01/2019,WWW.REED.CO.UK,Heritage Culture and Visitors,Travel And Subsistence,48,48,0,0,0,0
31/01/2019,LNER WEB SALES,Heritage Culture and Visitors,Travel And Subsistence,26.3,26.3,0,0,0,0
31/01/2019,GENTWORKS LIMITED,Refuse Collection,Other Equipment And Tools,165,198,0,33,0,20
30/01/2019,DISCLOSURE & BARRING,Energy Services,Professional Services,13,13,0,0,0,0
30/01/2019,DISCLOSURE & BARRING,Personnel Section,Disclosure & barring service,13,13,0,0,0,0
30/01/2019,DISCLOSURE & BARRING,Personnel Section,Disclosure & barring service,13,13,0,0,0,0
30/01/2019,DISCLOSURE & BARRING,Personnel Section,Disclosure & barring service,13,13,0,0,0,0
30/01/2019,DISCLOSURE & BARRING,Personnel Section,Disclosure & barring service,13,13,0,0,0,0
01/02/2019,SCREWFIX NEWARK,Vehicle Pool Workshop,Materials,19.15,22.98,0,3.83,0,20
01/02/2019,SCREWFIX NEWARK,Vehicle Pool Workshop,Other Equipment And Tools,123.32,147.98,0,24.66,0,20
02/02/2019,WM MORRISONS STORE,Heritage Culture and Visitors,Cafeteria,21.39,21.39,0,0,0,0
01/02/2019,GODADDY COM EUROPE,Newark Castle/Castle Grounds,Contractual Services,32.2,38.64,0,6.44,0,20
01/02/2019,MAILCHIMP    MONTHLY,Heritage Culture and Visitors,Printing,57.74,57.74,0,0,0.09,0
01/02/2019,iZ  Newark Busines,Newark Business Innovation Cen,Advertising,7,7,0,0,0,0
04/02/2019,,,,-9650.02,-9650.02,0,0,0,0
04/02/2019,XLN TELECOM LTD,Southwell Tr admin & ops,Telephones,58.9,70.68,0,11.78,0,20
04/02/2019,LNER WEB SALES,Council Tax,Travel And Subsistence,16.2,16.2,0,0,0,0
04/02/2019,ASDA GROCERIES ONLINE,Castle House,Catering,40.12,40.12,0,0,0,0
04/02/2019,WM MORRISONS STORE,Newark Business Innovation Cen,Office Equipment Purchase,2.5,3,0,0.5,0,20
04/02/2019,NEWARK & SHERWOOD LOCK,Newark Business Innovation Cen,Repairs And Maintenance,4.12,4.95,0,0.83,0,20
04/02/2019,BT BILL PAYMENT 2,Cctv,Telephones,152.7,183.24,0,30.54,0,20
05/02/2019,PAYPAL  HIVE STORE,Planning Support,Contractual Services,199.59,199.59,0,0,0,0
05/02/2019,LNER WEB SALES,Financial Services,Travel And Subsistence,7.9,7.9,0,0,0,0
05/02/2019,NEWARK CASTLE TO,Performance,Travel And Subsistence,318,318,0,0,0,0
05/02/2019,NEWARK CASTLE TO,Strategic Hsg (Was Community),Travel And Subsistence,87.5,87.5,0,0,0,0
05/02/2019,CO OP FOOD,Southwell Tr admin & ops,Vending Machine Provisions,26.4,26.4,0,0,0,0
06/02/2019,EXPERIAN-BUSSTRATS,Planning Support,Contractual Services,127,127,0,0,0,0
06/02/2019,Hotel on Booking.com,Energy Services,Professional Services,63.2,63.2,0,0,0,0
06/02/2019,E.ON ENERGY SOLUTIONS,Housing Options,Recharge Third Party,26.64,26.64,0,0,0,0
06/02/2019,ONE STOP 3018,Housing Options,Recharge Third Party,20,20,0,0,0,0
06/02/2019,ONE STOP 3018,Housing Options,Recharge Third Party,20,20,0,0,0,0
06/02/2019,ASDA  STORES 4201,Newark Business Innovation Cen,Cafeteria,0.58,0.7,0,0.12,0,20
06/02/2019,NEWARK CASTLE TO,Corporate Management Team,Travel And Subsistence,26.7,26.7,0,0,0,0
06/02/2019,NEWARK CASTLE TO,Members Expenses,Travel And Subsistence,53.4,53.4,0,0,0,0
07/02/2019,WWW.SWIMMING.ORG,Southwell Tr admin & ops,Training Expenses,135,135,0,0,0,0
07/02/2019,WWW.ARGOS.CO.UK,Planning Support,Is Stock Consumables,93.94,93.94,0,0,0,0
07/02/2019,DISCLOSURE & BARRING,Personnel Section,Disclosure & barring service,13,13,0,0,0,0
07/02/2019,WP-ACAS,Central Personnel Expenses,Internal Training,105,105,0,0,0,0
07/02/2019,ASDA GROCERIES ONLINE,Castle House,Catering,52.1,52.1,0,0,0,0
08/02/2019,WWW.THEKNOWLEDGEACADEM,Land Charges,Computer Software Maintenance,118.8,118.8,0,0,0,0
08/02/2019,LNER WEB SALES,Licensing Admin,Travel And Subsistence,31.4,31.4,0,0,0,0
08/02/2019,CO OP FOOD,Southwell Tr admin & ops,Vending Machine Provisions,13.2,13.2,0,0,0,0
10/02/2019,CO OP FOOD,Southwell Tr admin & ops,Vending Machine Provisions,13.2,13.2,0,0,0,0
08/02/2019,Trainline,Legal Section,Travel And Subs For Site Mtgs,37.34,37.34,0,0,0,0
08/02/2019,Trainline,Legal Section,Training Expenses,65.73,65.73,0,0,0,0
08/02/2019,BOOKER LIMITED GRANTHA,Newark Business Innovation Cen,Cafeteria,66.09,79.31,0,13.22,0,20
09/02/2019,ASDA  STORES 4201,Surface Car Parks Newark,Office Equipment Purchase,25,30,0,5,0,20
11/02/2019,ROYAL MAIL CHARGES,Central Postages,Postages,1.5,1.5,0,0,0,0
11/02/2019,ROYAL MAIL CHARGES,Central Postages,Postages,2,2,0,0,0,0
11/02/2019,LNER WEB SALES,Planning Policy,Travel And Subsistence,7.6,7.6,0,0,0,0
11/02/2019,Amazon Prime MI91X8VB4,Financial Services,Travel And Subsistence,7.99,7.99,0,0,0,0
11/02/2019,ASDA GROCERIES ONLINE,Castle House,Catering,34.42,41.31,0,6.89,0,20
11/02/2019,LNER WEB SALES,Performance,Travel And Subsistence,303,303,0,0,0,0
11/02/2019,NEWARK CASTLE TO,Performance,Travel And Subsistence,-318,-318,0,0,0,0
12/02/2019,LNER WEB SALES,Policy & Commissioning,Travel And Subsistence,14.1,14.1,0,0,0,0
12/02/2019,FTPE WEBTIS 1,Legal Section,Training Expenses,36,36,0,0,0,0
12/02/2019,LEISURE CONTROLS I,Housing Options,Recharge Third Party,101.5,121.8,0,20.3,0,20
12/02/2019,WAITROSE 227,Civic Expenses,Allowance,37.82,37.82,0,0,0,0
13/02/2019,WWW.CROMWELL.CO.UK,Vehicle Pool Workshop,Other Equipment And Tools,98.57,118.28,0,19.71,0,20
13/02/2019,AMZN Mktp UK MI5E765F4,Vicar Water Park,Other Equipment And Tools,59,70.8,0,11.8,0,20
13/02/2019,NATIONAL WESTMINSTER B,Private Sector Disabled Facilities Gran,Disabled Facilities,100,100,0,0,0,0
13/02/2019,ASDA GROCERIES ONLINE,Castle House,Catering,68.44,68.44,0,0,0,0
13/02/2019,ADOBE  CREATIVE CLOUD,Heritage Culture and Visitors,Printing,59,70.8,0,11.8,0,20
13/02/2019,CO OP FOOD,Southwell Tr admin & ops,Vending Machine Provisions,11,11,0,0,0,0
13/02/2019,HOMEBASE LTD,Arts Development,Parish Cncls And Vol Bodies,27.5,33,0,5.5,0,20
13/02/2019,ONE STOP 3018,Housing Options,Recharge Third Party,20,20,0,0,0,0
13/02/2019,ONE STOP 3018,Housing Options,Recharge Third Party,20,20,0,0,0,0
13/02/2019,HOMEBASE LTD,Newark Business Innovation Cen,Repairs And Maintenance,8.33,10,0,1.67,0,20
13/02/2019,NEWARK & SHERWOOD LOCK,Newark Business Innovation Cen,Repairs And Maintenance,3.75,4.5,0,0.75,0,20
13/02/2019,SAVERS HEALTH & BEAUTY,Newark Business Innovation Cen,Office Equipment Purchase,7.49,8.99,0,1.5,0,20
14/02/2019,W BOYES & CO LTD NEWAR,Castle House,Cleaning Materials,5,5,0,0,0,0
14/02/2019,STEARN ELEC. T/A B,Newark Business Innovation Cen,Repairs And Maintenance,224.99,269.99,0,45,0,20
14/02/2019,WILKO RETAIL LIMIT,Castle House,Cleaning Materials,7.5,7.5,0,0,0,0
14/02/2019,JYSK LTD,Heritage Culture and Visitors,Catering,9.99,9.99,0,0,0,0
14/02/2019,CANFORD AUDIO PLC,Area Planning,Is Stock Consumables,136.2,136.2,0,0,0,0
14/02/2019,DISCLOSURE & BARRING,Personnel Section,Disclosure & barring service,13,13,0,0,0,0
14/02/2019,SP   CASE HUT,Emergency Planning,Contractual Services,113.66,113.66,0,0,0,0
15/02/2019,DVSA,Vehicle Pool Workshop,Materials,410,410,0,0,0,0
16/02/2019,CO OP FOOD,Southwell Tr admin & ops,Vending Machine Provisions,13.2,13.2,0,0,0,0
15/02/2019,F DONCASTER LTD,Heritage Culture and Visitors,Catering,203.22,203.22,0,0,0,0
16/02/2019,WM MORRISONS STORE,Heritage Culture and Visitors,Travel And Subsistence,8.66,10.39,0,1.73,0,20
15/02/2019,EB  PRACTICAL WORKSHOP,Heritage Culture and Visitors,Printing,60,60,0,0,0,0
15/02/2019,HOMEBASE LTD,Arts Development,Parish Cncls And Vol Bodies,53.87,64.65,0,10.78,0,20
15/02/2019,LIZS GARDEN CENTRE,Arts Development,Parish Cncls And Vol Bodies,61.15,73.38,0,12.23,0,20
15/02/2019,DISCLOSURE & BARRING,Museums Management,Professional Services,13,13,0,0,0,0
15/02/2019,DISCLOSURE & BARRING,Millgate Museum,Professional Services,13,13,0,0,0,0
15/02/2019,DISCLOSURE & BARRING,Museums Management,Professional Services,13,13,0,0,0,0
18/02/2019,DVLA VEHICLE TAX,Vehicle Pool Workshop,Licences & M.O.T.'S,252.5,252.5,0,0,0,0
18/02/2019,DVLA VEHICLE TAX,Vehicle Pool Workshop,Licences & M.O.T.'S,252.5,252.5,0,0,0,0
18/02/2019,DVLA VEHICLE TAX,Vehicle Pool Workshop,Licences & M.O.T.'S,252.5,252.5,0,0,0,0
18/02/2019,DVLA VEHICLE TAX,Vehicle Pool Workshop,Licences & M.O.T.'S,252.5,252.5,0,0,0,0
18/02/2019,DVLA VEHICLE TAX,Vehicle Pool Workshop,Licences & M.O.T.'S,252.5,252.5,0,0,0,0
18/02/2019,DVLA VEHICLE TAX,Vehicle Pool Workshop,Licences & M.O.T.'S,252.5,252.5,0,0,0,0
18/02/2019,ROYAL MAIL CHARGES,Central Postages,Postages,1.5,1.5,0,0,0,0
18/02/2019,ROYAL MAIL CHARGES,Central Postages,Postages,1.5,1.5,0,0,0,0
18/02/2019,AMZN Mktp UK MI6EQ0DY4,Heritage Culture and Visitors,Promotion Of Events,4.15,4.98,0,0.83,0,20
18/02/2019,DISCLOSURE & BARRING,Personnel Section,Disclosure & barring service,13,13,0,0,0,0
18/02/2019,ASDA GROCERIES ONLINE,Castle House,Catering,52.03,52.03,0,0,0,0
18/02/2019,PRIMEPRINT,Heritage Culture and Visitors,Printing,18,21.6,0,3.6,0,20
18/02/2019,LIZS GARDEN CENTRE,Arts Development,Parish Cncls And Vol Bodies,52.2,62.64,0,10.44,0,20
18/02/2019,ALDI 31 779,Housing Options,Prevention Fund,1.97,2.37,0,0.4,0,20
18/02/2019,WM MORRISONS STORE,Housing Options,Prevention Fund,10.5,12.6,0,2.1,0,20
18/02/2019,DAVISON`S BAKERY,Housing Options,Prevention Fund,20,24,0,4,0,20
18/02/2019,HOMEBASE LTD,Arts Development,Parish Cncls And Vol Bodies,12.92,15.5,0,2.58,0,20
19/02/2019,SCREWFIX NEWARK,Repairs & Maintenance - A4T,Repairs And Maintenance,49.97,59.97,0,10,0,20
19/02/2019,ASDA  STORES 4201,Heritage Culture and Visitors,Travel And Subsistence,44.67,53.6,0,8.93,0,20
19/02/2019,PAYPAL  IAPPLY,Planning Support,Microfilming,206,206,0,0,0,0
19/02/2019,LNER WEB SALES,Performance,Travel And Subsistence,97.6,97.6,0,0,0,0
19/02/2019,NEWARK CASTLE TO,Housing Options,Recharge Third Party,6.6,6.6,0,0,0,0
19/02/2019,LNER WEB SALES,Corporate Management Team,Travel And Subsistence,132,132,0,0,0,0
19/02/2019,LNER WEB SALES,Committee Section,Travel And Subsistence,132,132,0,0,0,0
19/02/2019,AMZN Mktp UK MI6KF62E4,Heritage Culture and Visitors,Education & Outreach,8.58,10.3,0,1.72,0,20
19/02/2019,HOMEBASE LTD,Arts Development,Parish Cncls And Vol Bodies,5,6,0,1,0,20
20/02/2019,LCG,Refuse Collection,Materials,392,470.4,0,78.4,0,20
20/02/2019,ROYAL MAIL CHARGES,Central Postages,Postages,1.5,1.5,0,0,0,0
20/02/2019,ROYAL MAIL CHARGES,Central Postages,Postages,1.5,1.5,0,0,0,0
20/02/2019,AMZN Mktp UK MI9FC47R4,Env Health Reactive,Office Equipment Purchase,15.41,18.49,0,3.08,0,20
20/02/2019,WWW.TOTALJOBS.COM,Corporate Development,Course Fees,149,178.8,0,29.8,0,20
20/02/2019,ONE STOP 3018,Housing Options,Recharge Third Party,20,20,0,0,0,0
20/02/2019,ONE STOP 3018,Housing Options,Recharge Third Party,20,20,0,0,0,0
20/02/2019,WM MORRISONS STORE,Newark Business Innovation Cen,Office Equipment Purchase,12.92,15.5,0,2.58,0,20
20/02/2019,BIFFA WASTE SERVIC,Street Sweeping,Fly Tipping Removal,162.75,195.3,0,32.55,0,20
21/02/2019,FSPRG.UK,Newark Castle/Castle Grounds,Repairs And Maintenance,45,54,0,9,0,20
21/02/2019,FSPRG.UK,Newark Castle/Castle Grounds,Repairs And Maintenance,45,54,0,9,0,20
21/02/2019,AMZN Mktp UK MI9II97D4,Heritage Culture and Visitors,Cleaning Materials,26.88,32.26,0,5.38,0,20
21/02/2019,ASDA GROCERIES ONLINE,Castle House,Catering,34.36,41.23,0,6.87,0,20
21/02/2019,HOMEBASE LTD,Newark Business Innovation Cen,Repairs And Maintenance,13.16,15.79,0,2.63,0,20
21/02/2019,SCREWFIX NEWARK,Newark Business Innovation Cen,Repairs And Maintenance,14.15,16.98,0,2.83,0,20
21/02/2019,ASDA  STORES 4201,Newark Business Innovation Cen,Office Equipment Purchase,3.75,4.5,0,0.75,0,20
21/02/2019,AMZN MKTP UK MI79W6UV4,Community Safety Events,Other Equipment And Tools,197.25,236.7,0,39.45,0,20
22/02/2019,P NWK&SHWD DC,Community Safety Events,Other Equipment And Tools,21,21,0,0,0,0
22/02/2019,LNER WEB SALES,Financial Services,Travel And Subsistence,21.4,21.4,0,0,0,0
22/02/2019,CENTRAL SOURCE LTD,Sports Hub,Materials - Other,32.99,39.59,0,6.6,0,20
22/02/2019,CO OP FOOD,Southwell Tr admin & ops,Vending Machine Provisions,13.2,13.2,0,0,0,0
22/02/2019,DISCLOSURE & BARRING,Personnel Section,Disclosure & barring service,13,13,0,0,0,0
22/02/2019,DISCLOSURE & BARRING,Personnel Section,Disclosure & barring service,13,13,0,0,0,0
22/02/2019,AMZN MKTP UK MI7FG0I74,Community Safety Events,Other Equipment And Tools,236.7,236.7,0,0,0,0
25/02/2019,DISCLOSURE & BARRING,Personnel Section,Disclosure & barring service,13,13,0,0,0,0
25/02/2019,ASDA GROCERIES ONLINE,Castle House,Catering,42.52,42.52,0,0,0,0
26/02/2019,FACEBK C28NKKWDQ2,Heritage Culture and Visitors,Printing,113.35,113.35,0,0,0,0
25/02/2019,BOOTS 1106,Southwell Tr admin & ops,Repairs And Maintenance,80.06,96.07,0,16.01,0,0
25/02/2019,CO OP FOOD,Southwell Tr admin & ops,Vending Machine Provisions,13.2,13.2,0,0,0,0
25/02/2019,WM MORRISONS STORE,Newark Business Innovation Cen,Cafeteria,4.8,5.76,0,0.96,0,20
25/02/2019,NEWARK & SHERWOOD LOCK,Newark Business Innovation Cen,Repairs And Maintenance,22.5,27,0,4.5,0,20
26/02/2019,LNER WEB SALES,Env Health Proactive,Travel And Subsistence,58.8,58.8,0,0,0,0
26/02/2019,WILKO RETAIL LIMIT,Cctv,Cctv Operation,6.85,6.85,0,0,0,0
26/02/2019,POSITIVE MEDIA PROMOTI,Community Safety Events,Other Equipment And Tools,300,360,0,60,0,20
27/02/2019,ONE STOP 3018,Housing Options,Recharge Third Party,20,20,0,0,0,0
27/02/2019,ONE STOP 3018,Housing Options,Recharge Third Party,20,20,0,0,0,0
28/02/2019,HOME BARGAINS NEWARK,Brunel Drive Depot,Materials,7.63,9.16,0,1.53,0,20
28/02/2019,P NWK&SHWD DC,Syrian resettlement scheme,Recharge Third Party,15,15,0,0,0,0
28/02/2019,EYRE & ELLISTON LTD,Heritage Culture and Visitors,Other Equipment And Tools,164.78,197.74,0,32.96,0,0
28/02/2019,WM MORRISONS STORE,Heritage Culture and Visitors,Cafeteria,7.21,8.65,0,1.44,0,20
28/02/2019,LNER WEB SALES,Community Infrastructure Levy,Travel And Subsistence,115,115,0,0,0,0
28/02/2019,ASDA GROCERIES ONLINE,Castle House,Catering,42.96,42.96,0,0,0,0
28/02/2019,GALA TENT,Arts Development,Contractual Services,400,400,0,0,0,0
28/02/2019,GALA TENT,Arts Development,Contractual Services,454.99,454.99,0,0,0,0
28/02/2019,CILEX LAW SCHOOL LIMIT,Legal Section,Training Expenses,16.67,20,0,3.33,0,20
28/02/2019,NEWARK & SHERWOOD LOCK,Newark Business Innovation Cen,Repairs And Maintenance,3.75,4.5,0,0.75,0,20
02/03/2019,CO OP FOOD,Southwell Tr admin & ops,Vending Machine Provisions,13.2,13.2,0,0,0,0
01/03/2019,NEWARK CASTLE TO,Env Health Proactive,Travel And Subsistence,21.3,21.3,0,0,0,0
01/03/2019,MAILCHIMP    MONTHLY,Heritage Culture and Visitors,Printing,56.59,56.59,0,0,0.09,0
01/03/2019,TRAINLINE,Legal Section,Training Expenses,-21.9,-21.9,0,0,0,0
02/03/2019,Oyster Auto-top up,Aggregated Budgets,Travel And Subsistence,20,20,0,0,0,0
01/03/2019,Oyster Auto-top up,Aggregated Budgets,Travel And Subsistence,20,20,0,0,0,0
01/03/2019,WWW.IDAPTPLANNER3D.COM,Env Health Proactive,Professional Services,449,538.8,0,89.8,0,20
01/03/2019,SCREWFIX NEWARK,Newark Business Innovation Cen,Repairs And Maintenance,-8.32,-9.99,0,-1.67,0,20
01/03/2019,WWW.SOLACE.ORG.UK,Corporate Management Team,Course Fees,99,118.8,0,19.8,0,20
01/03/2019,Amazon.co.uk MW3K84ZN4,Customer Services,Office Equipment Purchase,14.19,17.03,0,2.84,0,20
04/03/2019,WE ONLY MOT NEWARK,Vehicle Pool Workshop,Materials,55,55,0,0,0,0
04/03/2019,XLN TELECOM LTD,Southwell Tr admin & ops,Telephones,58.9,70.68,0,11.78,0,0
04/03/2019,DISCLOSURE & BARRING,Personnel Section,Disclosure & barring service,13,13,0,0,0,0
04/03/2019,ASDA GROCERIES ONLINE,Castle House,Catering,48.34,48.34,0,0,0,0
04/03/2019,LNER WEB SALES,Information Governance,Travel And Subsistence,8.6,8.6,0,0,0,0
04/03/2019,LNER WEB SALES,Financial Services,Travel And Subsistence,15.4,15.4,0,0,0,0
04/03/2019,NEWARK & SHERWOOD LOCK,Newark Business Innovation Cen,Repairs And Maintenance,7.5,9,0,1.5,0,20
05/03/2019,ABCO ENG HYD,Vehicle Pool Workshop,Other Equipment And Tools,144.56,173.47,0,28.91,0,20
05/03/2019,TESCO STORES 2995,Sherwood Forest Craft Centre,Materials,8.25,9.9,0,1.65,0,20
05/03/2019,WWW.GARDENWILDLIFEDIRE,Vicar Water Park,Materials,14.97,17.96,0,2.99,0,20
05/03/2019,CO OP FOOD,Southwell Tr admin & ops,Vending Machine Provisions,22,22,0,0,0,0
05/03/2019,Trainline,Housing Options,Travel And Subsistence,114.89,137.87,0,22.98,0,20
06/03/2019,SCREWFIX NEWARK,Brunel Drive Depot,Materials,16.65,19.98,0,3.33,0,20
06/03/2019,WWW.NEWARK-SHERWOODDC.,Heritage Culture and Visitors,Licences,60,60,0,0,0,0
06/03/2019,STG-ELECTRIC.CO.UK,Heritage Culture and Visitors,Other Equipment And Tools,320.77,384.92,0,64.15,0,20
06/03/2019,E.ON ENERGY SOLUTIONS,Housing Options,Recharge Third Party,30.93,30.93,0,0,0,0
06/03/2019,HOMEBASE LTD,Refuse Collection,Materials,9.5,9.5,0,0,0,0
06/03/2019,ONE STOP 3018,Housing Options,Recharge Third Party,20,20,0,0,0,0
07/03/2019,,,,-11754.6,-11754.6,0,0,0,0
07/03/2019,DVLA VEHICLE TAX,Vehicle Pool Workshop,Licences & M.O.T.'S,252.5,252.5,0,0,0,0
07/03/2019,DVLA VEHICLE TAX,Vehicle Pool Workshop,Licences & M.O.T.'S,252.5,252.5,0,0,0,0
07/03/2019,DVLA VEHICLE TAX,Vehicle Pool Workshop,Licences & M.O.T.'S,167.5,167.5,0,0,0,0
07/03/2019,ajproductscouk,Repairs & Maintenance - A4T,Repairs And Maintenance,58,69.6,0,11.6,0,20
07/03/2019,SMITHS TIMBER MERCH LT,Heritage Culture and Visitors,Other Equipment And Tools,30.71,30.71,0,0,0,0
07/03/2019,SCREWFIX DIRECT,Heritage Culture and Visitors,Other Equipment And Tools,25.96,25.96,0,0,0,0
07/03/2019,AMZN Mktp UK MW4YQ71P4,Heritage Culture and Visitors,Education & Outreach,5.95,7.14,0,1.19,0,20
07/03/2019,AMZN Mktp UK MW6QL70T4,Heritage Culture and Visitors,Education & Outreach,2.34,2.81,0,0.47,0,20
07/03/2019,AMZN Mktp UK MW9VH50I4,Heritage Culture and Visitors,Education & Outreach,3.63,4.36,0,0.73,0,20
07/03/2019,AMZN Mktp UK MW3R20084,Heritage Culture and Visitors,Education & Outreach,2.44,2.93,0,0.49,0,20
07/03/2019,LNER WEB SALES,Env Health Proactive,Travel And Subsistence,27.3,27.3,0,0,0,0
07/03/2019,ASDA GROCERIES ONLINE,Castle House,Recharge Third Party,79.47,79.47,0,0,0,0
07/03/2019,SCREWFIX NEWARK,Refuse Collection,Materials,400.28,480.34,0,80.06,0,20
07/03/2019,SCREWFIX NEWARK,Refuse Collection,Materials,29.56,35.47,0,5.91,0,20
08/03/2019,AMZN Mktp UK MW1O06P04,Heritage Culture and Visitors,Education & Outreach,10.19,12.23,0,2.04,0,20
07/03/2019,EAST MIDLANDS TRAI,Legal Section,Travel And Subsistence,15.2,15.2,0,0,0,0
06/03/2019,PREMIER INN,Promotion Of Tourism,Travel And Subsistence,144.5,144.5,0,0,0,0
08/03/2019,BES Commercial Electri,Buttermarket,Electricity,77.02,92.42,0,15.4,0,20
11/03/2019,Amazon.co.uk MW6WS4VH4,Heritage Culture and Visitors,Education & Outreach,15.37,18.44,0,3.07,0,20
08/03/2019,E.ON ENERGY SOLUTIONS,Housing Options,Recharge Third Party,4.85,4.85,0,0,0,0
08/03/2019,LNER WEB SALES,Env Health Proactive,Travel And Subsistence,53,53,0,0,0,0
08/03/2019,E.ON ENERGY SOLUTIONS,Housing Options,Recharge Third Party,6.97,6.97,0,0,0,0
08/03/2019,E.ON ENERGY SOLUTIONS,Housing Options,Rural Cinema,17.59,17.59,0,0,0,0
08/03/2019,E.ON ENERGY SOLUTIONS,Housing Options,Recharge Third Party,16.83,16.83,0,0,0,0
08/03/2019,E.ON ENERGY SOLUTIONS,Housing Options,Recharge Third Party,13.07,13.07,0,0,0,0
08/03/2019,E.ON ENERGY SOLUTIONS,Housing Options,Recharge Third Party,7.69,7.69,0,0,0,0
08/03/2019,CO OP FOOD,Southwell Tr admin & ops,Vending Machine Provisions,13.2,13.2,0,0,0,0
10/03/2019,AMZN Mktp UK MW1K09XX4,Heritage Culture and Visitors,Education & Outreach,12.73,15.28,0,2.55,0,20
08/03/2019,Trainline,Housing Options,Travel And Subsistence,71.14,85.37,0,14.23,0,20
10/03/2019,LACE MARKET CAR PARK U,Corporate Management Team,Travel And Subsistence,5,6,0,1,0,20
08/03/2019,ALDI 31 779,Newark Business Innovation Cen,Cafeteria,2.8,3.36,0,0.56,0,20
11/03/2019,LNER WEB SALES,Area Planning,Travel And Subsistence,70.7,70.7,0,0,0,0
11/03/2019,ASDA GROCERIES ONLINE,Castle House,Catering,41.29,41.29,0,0,0,0
11/03/2019,LNER WEB SALES,Env Health Proactive,Travel And Subsistence,71.7,71.7,0,0,0,0
11/03/2019,Amazon Prime MW4BC3VO4,Env Health Proactive,Stationery,6.66,7.99,0,1.33,0,20
11/03/2019,NEWARK CASTLE TO,Legal Section,Travel And Subsistence,15.2,15.2,0,0,0,0
11/03/2019,NEWARK CASTLE TO,Corporate Management Team,Travel And Subsistence,80,80,0,0,0,0
12/03/2019,NEWARK CASTLE TO,Planning Policy,Travel And Subsistence,21.4,21.4,0,0,0,0
12/03/2019,WWW.ASPLI.COM,Life Saving,Equipment Repairs & Renewals,157.52,189.02,0,31.5,0,20
12/03/2019,PAYPAL  TOOLBATTERY,Refuse Collection,Materials,176.25,176.25,0,0,0,0
12/03/2019,SCREWFIX NEWARK,Refuse Collection,Materials,14.32,17.18,0,2.86,0,20
12/03/2019,CO OP FOOD,Southwell Tr admin & ops,Vending Machine Provisions,13.2,13.2,0,0,0,0
12/03/2019,AIRPORT PARKING,Promotion Of Tourism,Travel And Subsistence,35.83,43,0,7.17,0,20
11/03/2019,CO OP FOOD,Southwell Tr admin & ops,Vending Machine Provisions,13.2,13.2,0,0,0,0
12/03/2019,Trainline,Legal Section,Training Expenses,68.68,68.68,0,0,0,0
11/03/2019,AO RETAIL LIMITED,Newark Business Innovation Cen,Repairs And Maintenance,224.14,268.97,0,44.83,0,20
12/03/2019,NEWARK & SHERWOOD LOCK,Newark Business Innovation Cen,Repairs And Maintenance,8.25,9.9,0,1.65,0,20
11/03/2019,WM MORRISONS STORE,Community Safety Events,Other Equipment And Tools,17,17,0,0,0,0
12/03/2019,PAYPAL  JAFGRAPHICS,Community Safety Fund,Contractual Services,366.58,439.9,0,73.32,0,20
13/03/2019,LNER WEB SALES,Financial Services,Travel And Subsistence,119.1,119.1,0,0,0,0
13/03/2019,ADOBE  CREATIVE CLOUD,Heritage Culture and Visitors,Advertising,59,70.8,0,11.8,0,20
13/03/2019,Amazon.co.uk MW5GM5H54,Legal Section,Stationery,10.09,12.11,0,2.02,0,20
13/03/2019,SQ  CAM-EQUESTRIAN,Community Safety Fund,Contractual Services,1015.24,1015.24,0,0,0,0
13/03/2019,NEWARK CASTLE TO,Corporate Management Team,Travel And Subsistence,80,80,0,0,0,0
13/03/2019,NEWARK CASTLE TO,Corporate Management Team,Travel And Subsistence,-70,-70,0,0,0,0
13/03/2019,DVSA,Vehicle Pool Workshop,Materials,13,13,0,0,0,0
13/03/2019,PAYPAL  UNIVERSALSI,Community Safety Fund,Contractual Services,73.17,87.8,0,14.63,0,20
13/03/2019,PAYPAL  VISIONSIGNS,Community Safety Fund,Contractual Services,249.9,249.9,0,0,0,0
14/03/2019,WWW.ZORO.CO.UK,Repairs & Maintenance - A4T,Repairs And Maintenance,13.32,15.98,0,2.66,0,20
14/03/2019,WWW.OAKS ONLINE SHOPPI,Sconce & Devon Park,Contractual Services,34.08,40.9,0,6.82,0,20
14/03/2019,ASDA GROCERIES ONLINE,Castle House,Catering,70.28,70.28,0,0,0,0
14/03/2019,Amazon.co.uk MW90468Y4,Sconce & Devon Park,Contractual Services,16.66,19.99,0,3.33,0,20
14/03/2019,Amazon.co.uk MW9JF08I4,Sconce & Devon Park,Contractual Services,16.65,19.98,0,3.33,0,20
14/03/2019,AMZN MKTP UK MW18R0BG4,Sconce & Devon Park,Contractual Services,66.25,79.5,0,13.25,0,20
14/03/2019,WWW.DRAINAGESUPERSTORE,Sconce & Devon Park,Contractual Services,184.44,221.33,0,36.89,0,20
14/03/2019,WWW.TUDORENVIRONMENTAL,Sconce & Devon Park,Contractual Services,41.2,49.44,0,8.24,0,20
14/03/2019,NEWARK CASTLE TO,National Civil War Centre,Travel And Subsistence,181.5,181.5,0,0,0,0
14/03/2019,WWW.OAKS ONLINE SHOPPI,Sconce & Devon Park,Contractual Services,36.46,43.75,0,7.29,0,20
14/03/2019,Amazon.co.uk MW85Z1824,Sconce & Devon Park,Contractual Services,16.66,19.99,0,3.33,0,20
14/03/2019,ILEX.ORG.UK,Legal Section,Training Expenses,132.5,159,0,26.5,0,20
13/03/2019,HOMEBASE LTD,Newark Business Innovation Cen,Repairs And Maintenance,22.92,27.5,0,4.58,0,20
14/03/2019,WWW.SAFELINCS.CO.UK,Newark Business Innovation Cen,Repairs And Maintenance,256.5,307.8,0,51.3,0,20
14/03/2019,BOOKERECOMM,Newark Business Innovation Cen,Cafeteria,189.37,227.24,0,37.87,0,0
15/03/2019,WWW.GLASDON.COM,Castle House,Contractual Services,351.18,421.42,0,70.24,0,20
16/03/2019,SAUNASHOP.COM,Southwell Tr admin & ops,Other Equipment Maintenance,179.02,214.82,0,35.8,0,20
15/03/2019,WWW.NISBETS.COM,Heritage Culture and Visitors,Catering,130.42,130.42,0,0,0,0
16/03/2019,Amazon.co.uk MW8UH2D44,Sconce & Devon Park,Contractual Services,43.72,52.47,0,8.75,0,20
16/03/2019,Amazon.co.uk MW8FG0DC4,Sconce & Devon Park,Contractual Services,65.98,65.98,0,0,0,0
14/03/2019,CO OP FOOD,Southwell Tr admin & ops,Vending Machine Provisions,13.2,13.2,0,0,0,0
15/03/2019,PP STEVEWAGSTA,Heritage Culture and Visitors,Education & Outreach,36,36,0,0,0,0
15/03/2019,PP S POINTER,Heritage Culture and Visitors,Education & Outreach,8.25,8.25,0,0,0,0
15/03/2019,TWO J'S,Heritage Culture and Visitors,Education & Outreach,77,77,0,0,0,0
15/03/2019,DERBYSHIRE ARMS LTD,Heritage Culture and Visitors,Education & Outreach,40,40,0,0,0,0
15/03/2019,THE MERCHANT VENTURERS,Heritage Culture and Visitors,Education & Outreach,98.75,118.5,0,19.75,0,20
15/03/2019,SQ  RED SWAN BOOKS,Heritage Culture and Visitors,Education & Outreach,8,8,0,0,0,0
15/03/2019,PP PCROSSMAN,Heritage Culture and Visitors,Education & Outreach,39,39,0,0,0,0
15/03/2019,PP CLOTH HALL,Heritage Culture and Visitors,Education & Outreach,10,10,0,0,0,0
15/03/2019,HERTS SPEC. FABRIC,Heritage Culture and Visitors,Education & Outreach,35,35,0,0,0,0
15/03/2019,PAUL MEEKINS,Heritage Culture and Visitors,Education & Outreach,51,51,0,0,0,0
15/03/2019,teamviewer.com,Ict,Hardware Maintenance,1438.8,1438.8,0,0,0,0
18/03/2019,ASDA GROCERIES ONLINE,Castle House,Catering,41.52,41.52,0,0,0,0
18/03/2019,NEWARK & SHERWOOD LOCK,Lorry Park,Materials,20.62,24.75,0,4.13,0,20
18/03/2019,CO OP FOOD,Southwell Tr admin & ops,Vending Machine Provisions,13.2,13.2,0,0,0,0
19/03/2019,F DONCASTER LTD,Heritage Culture and Visitors,Catering,149.68,149.68,0,0,0,0
19/03/2019,DISCLOSURE & BARRING,Personnel Section,Disclosure & barring service,13,13,0,0,0,0
18/03/2019,WM MORRISONS STORE,Newark Business Innovation Cen,Cafeteria,8.15,9.78,0,1.63,0,20
19/03/2019,WM MORRISONS STORE,Newark Business Innovation Cen,Cafeteria,2.92,3.5,0,0.58,0,20
19/03/2019,AMZN Mktp UK MW0GH2KG4,Cctv,Other Equipment And Tools,13.96,13.96,0,0,0,0
20/03/2019,LNER WEB SALES,Heritage Culture and Visitors,Travel And Subsistence,-50.65,-50.65,0,0,0,0
20/03/2019,LNER WEB SALES,Heritage Culture and Visitors,Travel And Subsistence,-50.65,-50.65,0,0,0,0
20/03/2019,DISCLOSURE & BARRING,Personnel Section,Disclosure & barring service,13,13,0,0,0,0
21/03/2019,WWW.TUDORENVIRONMENTAL,Vicar Water Park,Other Equipment And Tools,79.55,95.46,0,15.91,0,20
21/03/2019,ASDA GROCERIES ONLINE,Castle House,Catering,50.29,50.29,0,0,0,0
20/03/2019,CO OP FOOD,Southwell Tr admin & ops,Vending Machine Provisions,13.2,13.2,0,0,0,0
21/03/2019,SCREWFIX NEWARK,Newark Business Innovation Cen,Repairs And Maintenance,66.66,79.99,0,13.33,0,20
23/03/2019,CO OP FOOD,Southwell Tr admin & ops,Vending Machine Provisions,13.2,13.2,0,0,0,0
24/03/2019,FACEBK 58TM5L63V2,Promotion Of Tourism,Advertising,17,17,0,0,0,0
21/03/2019,ARCO LTD,Risk Management,Clothing And Uniforms,162.76,195.31,0,32.55,0,0
23/03/2019,Amazon.co.uk MW4731RO4,Cctv,Cctv Operation,17.66,21.19,0,3.53,0,20
25/03/2019,ASDA GROCERIES ONLINE,Castle House,Catering,42.34,42.34,0,0,0,0
26/03/2019,FACEBK ZVG7BL6EQ2,Heritage Culture and Visitors,Advertising,50,50,0,0,0,0
27/03/2019,NEWARK CASTLE TO,Financial Services,Travel And Subsistence,123.5,123.5,0,0,0,0
27/03/2019,FACEBK M2TXKKJ3V2,Promotion Of Tourism,Advertising,17,17,0,0,0,0
